[Event "December 5 Late 2023"]
[Site "https://www.chess.com"]
[Date "2023.12.05"]
[Round "4"]
[White "Sailer, Mike"]
[Black "Titus, Andrew"]
[Result "1/2-1/2"]
[Board "163"]
[TimeControl "180+1"]
[WhiteFideId "2012901"]
[BlackFideId "2059770"]
[WhiteElo "2043"]
[BlackElo "2592"]
[WhiteTeam "USA"]
[BlackTeam "USA"]
[WhiteClock "0:00:07"]
[BlackClock "0:00:02"]

1. d4 {[%clk 0:03:00]}  d5 {[%clk 0:02:54]} 2. Bf4 {[%clk 0:02:56]}  Nf6 {[%clk 0:02:54]} 3. e3 {[%clk 0:02:57]}  e6 {[%clk 0:02:52]} 4. Nf3 {[%clk 0:02:57]}  Bd6 {[%clk 0:02:52]} 5. Ne5 {[%clk 0:02:57]}  c5 {[%clk 0:02:51]} 6. Nc3 {[%clk 0:02:50]}  O-O {[%clk 0:02:50]} 7. Be2 {[%clk 0:02:49]}  a6 {[%clk 0:02:48]} 8. O-O {[%clk 0:02:42]}  Qc7 {[%clk 0:02:39]} 9. Bg3 {[%clk 0:02:25]}  Ne4 {[%clk 0:02:17]} 10. Nxe4 {[%clk 0:02:21]}  dxe4 {[%clk 0:02:06]} 11. Nc4 {[%clk 0:02:17]}  Bxg3 {[%clk 0:02:00]} 12. hxg3 {[%clk 0:02:17]}  b5 {[%clk 0:01:58]} 13. Nd2 {[%clk 0:02:09]}  Bb7 {[%clk 0:01:55]} 14. dxc5 {[%clk 0:02:08]}  Qxc5 {[%clk 0:01:48]} 15. Nb3 {[%clk 0:02:08]}  Qc7 {[%clk 0:01:45]} 16. c3 {[%clk 0:02:07]}  Rd8 {[%clk 0:01:44]} 17. Qc2 {[%clk 0:02:07]}  Nd7 {[%clk 0:01:45]} 18. Nd4 {[%clk 0:01:45]}  Ne5 {[%clk 0:01:43]} 19. a4 {[%clk 0:01:37]}  b4 {[%clk 0:01:18]} 20. cxb4 {[%clk 0:01:17]}  Qxc2 {[%clk 0:01:11]} 21. Nxc2 {[%clk 0:01:17]}  Rd2 {[%clk 0:01:06]} 22. Nd4 {[%clk 0:01:17]}  Rxb2 {[%clk 0:01:03]} 23. b5 {[%clk 0:01:18]}  a5 {[%clk 0:01:01]} 24. Rfc1 {[%clk 0:01:09]}  Bd5 {[%clk 0:00:57]} 25. Rc7 {[%clk 0:00:43]}  g6 {[%clk 0:00:49]} 26. Rac1 {[%clk 0:00:17]}  Kg7 {[%clk 0:00:44]} 27. Rc8 {[%clk 0:00:12]}  Ra7 {[%clk 0:00:43]} 28. R1c7 {[%clk 0:00:10]}  Rxc7 {[%clk 0:00:43]} 29. Rxc7 {[%clk 0:00:10]}  Rb4 {[%clk 0:00:43]} 30. Bf1 {[%clk 0:00:07]}  Rxa4 {[%clk 0:00:42]} 31. b6 {[%clk 0:00:07]}  Rb4 {[%clk 0:00:34]} 32. Nb5 {[%clk 0:00:06]}  Bc6 {[%clk 0:00:24]} 33. b7 {[%clk 0:00:05]}  Bxb7 {[%clk 0:00:15]} 34. Rxb7 {[%clk 0:00:05]}  a4 {[%clk 0:00:15]} 35. Nd6 {[%clk 0:00:04]}  Rxb7 {[%clk 0:00:12]} 36. Nxb7 {[%clk 0:00:05]}  a3 {[%clk 0:00:12]} 37. Nc5 {[%clk 0:00:05]}  a2 {[%clk 0:00:13]} 38. Nb3 {[%clk 0:00:06]}  Nd7 {[%clk 0:00:10]} 39. Bc4 {[%clk 0:00:06]}  Nb6 {[%clk 0:00:08]} 40. Bb5 {[%clk 0:00:06]}  Nd5 {[%clk 0:00:07]} 41. Na1 {[%clk 0:00:05]}  Nc3 {[%clk 0:00:06]} 42. Bc4 {[%clk 0:00:05]}  Kf6 {[%clk 0:00:06]} 43. Kf1 {[%clk 0:00:05]}  Ke5 {[%clk 0:00:07]} 44. Ke1 {[%clk 0:00:05]}  Kd6 {[%clk 0:00:05]} 45. Kd2 {[%clk 0:00:05]}  Nb1+ {[%clk 0:00:03]} 46. Kc2 {[%clk 0:00:06]}  Na3+ {[%clk 0:00:03]} 47. Kc3 {[%clk 0:00:05]}  Kc5 {[%clk 0:00:01]} 48. Bxa2 {[%clk 0:00:06]}  Nb5+ {[%clk 0:00:02]} 49. Kd2 {[%clk 0:00:05]}  Kb4 {[%clk 0:00:02]} 50. Nc2+ {[%clk 0:00:05]}  Ka4 {[%clk 0:00:02]} 51. Bc4 {[%clk 0:00:05]}  Nd6 {[%clk 0:00:02]} 52. Ba6 {[%clk 0:00:05]}  Ka5 {[%clk 0:00:02]} 53. Be2 {[%clk 0:00:04]}  e5 {[%clk 0:00:01]} 54. f3 {[%clk 0:00:04]}  f5 {[%clk 0:00:01]} 55. f4 {[%clk 0:00:04]}  exf4 {[%clk 0:00:01]} 56. gxf4 {[%clk 0:00:04]}  Kb6 {[%clk 0:00:01]} 57. Nd4 {[%clk 0:00:05]}  Kc5 {[%clk 0:00:01]} 58. Kc3 {[%clk 0:00:05]}  Kd5 {[%clk 0:00:01]} 59. Bd1 {[%clk 0:00:05]}  h6 {[%clk 0:00:01]} 60. Bb3+ {[%clk 0:00:05]}  Kc5 {[%clk 0:00:02]} 61. Bg8 {[%clk 0:00:05]}  g5 {[%clk 0:00:02]} 62. Bh7 {[%clk 0:00:04]}  gxf4 {[%clk 0:00:02]} 63. exf4 {[%clk 0:00:05]}  e3 {[%clk 0:00:01]} 64. Bxf5 {[%clk 0:00:04]}  e2 {[%clk 0:00:01]} 65. Nxe2 {[%clk 0:00:03]}  Nxf5 {[%clk 0:00:01]} 66. g4 {[%clk 0:00:04]}  Ne3 {[%clk 0:00:01]} 67. Kd3 {[%clk 0:00:04]}  Nxg4 {[%clk 0:00:01]} 68. Ke4 {[%clk 0:00:05]}  Kd6 {[%clk 0:00:01]} 69. Kf5 {[%clk 0:00:05]}  Ne3+ {[%clk 0:00:02]} 70. Kg6 {[%clk 0:00:05]}  Ke6 {[%clk 0:00:02]} 71. Kxh6 {[%clk 0:00:06]}  Kf5 {[%clk 0:00:02]} 72. Kh5 {[%clk 0:00:06]}  Nd5 {[%clk 0:00:02]} 73. Kh4 {[%clk 0:00:07]}  Nxf4 {[%clk 0:00:02]} 1/2-1/2

[Event "December 5 Late 2023"]
[Site "https://www.chess.com"]
[Date "2023.12.05"]
[Round "4"]
[White "NovakRatko"]
[Black "Vila Dupla, Aurelio"]
[Result "1-0"]
[Board "164"]
[TimeControl "180+1"]
[BlackFideId "2203383"]
[WhiteElo "2466"]
[BlackElo "2204"]
[BlackTeam "ESP"]
[WhiteClock "0:00:07"]
[BlackClock "0:00:00"]

1. d4 {[%clk 0:02:59]}  Nf6 {[%clk 0:02:57]} 2. c4 {[%clk 0:02:59]}  g6 {[%clk 0:02:56]} 3. Nc3 {[%clk 0:02:59]}  d5 {[%clk 0:02:56]} 4. f3 {[%clk 0:02:59]}  Bg7 {[%clk 0:02:52]} 5. e4 {[%clk 0:02:59]}  dxe4 {[%clk 0:02:43]} 6. fxe4 {[%clk 0:03:00]}  e5 {[%clk 0:02:43]} 7. d5 {[%clk 0:02:59]}  O-O {[%clk 0:02:38]} 8. Be2 {[%clk 0:02:58]}  c6 {[%clk 0:02:38]} 9. Bg5 {[%clk 0:02:57]}  h6 {[%clk 0:02:37]} 10. Bh4 {[%clk 0:02:57]}  Qa5 {[%clk 0:02:36]} 11. Qd2 {[%clk 0:02:54]}  g5 {[%clk 0:02:12]} 12. Bg3 {[%clk 0:02:51]}  b5 {[%clk 0:02:12]} 13. cxb5 {[%clk 0:02:46]}  cxb5 {[%clk 0:02:12]} 14. Bd3 {[%clk 0:01:49]}  b4 {[%clk 0:01:47]} 15. Nce2 {[%clk 0:01:46]}  Nh5 {[%clk 0:01:38]} 16. a3 {[%clk 0:01:41]}  Ba6 {[%clk 0:01:33]} 17. Bxa6 {[%clk 0:01:36]}  Nxa6 {[%clk 0:01:33]} 18. Nf3 {[%clk 0:01:34]}  Nxg3 {[%clk 0:01:09]} 19. Nxg3 {[%clk 0:01:34]}  f5 {[%clk 0:00:58]} 20. Nxf5 {[%clk 0:01:27]}  Rxf5 {[%clk 0:00:58]} 21. exf5 {[%clk 0:01:26]}  e4 {[%clk 0:00:59]} 22. Ng1 {[%clk 0:00:59]}  Nc5 {[%clk 0:00:55]} 23. Rd1 {[%clk 0:00:38]}  Nd3+ {[%clk 0:00:50]} 24. Kf1 {[%clk 0:00:37]}  Nxb2 {[%clk 0:00:42]} 25. axb4 {[%clk 0:00:15]}  Qb5+ {[%clk 0:00:09]} 26. Ne2 {[%clk 0:00:15]}  e3 {[%clk 0:00:08]} 27. Qc2 {[%clk 0:00:11]}  Nxd1 {[%clk 0:00:03]} 28. Qxd1 {[%clk 0:00:12]}  Qxb4 {[%clk 0:00:03]} 29. g3 {[%clk 0:00:11]}  Rf8 {[%clk 0:00:03]} 30. g4 {[%clk 0:00:10]}  Qe4 {[%clk 0:00:03]} 31. Rg1 {[%clk 0:00:10]}  h5 {[%clk 0:00:02]} 32. Ke1 {[%clk 0:00:07]}  hxg4 {[%clk 0:00:00]} 33. Ng3 {[%clk 0:00:07]} 1-0

[Event "December 5 Late 2023"]
[Site "https://www.chess.com"]
[Date "2023.12.05"]
[Round "4"]
[White "Cooper, Aaron"]
[Black "Vanek, Tomas"]
[Result "0-1"]
[Board "168"]
[TimeControl "180+1"]
[WhiteFideId "2634945"]
[BlackFideId "313459"]
[WhiteElo "2333"]
[BlackElo "2157"]
[WhiteTeam "CAN"]
[BlackTeam "CZE"]
[WhiteClock "0:00:00"]
[BlackClock "0:01:02"]

1. d4 {[%clk 0:03:00]}  f5 {[%clk 0:02:59]} 2. Bf4 {[%clk 0:02:59]}  Nf6 {[%clk 0:02:57]} 3. e3 {[%clk 0:02:59]}  d6 {[%clk 0:02:52]} 4. Nf3 {[%clk 0:02:58]}  b6 {[%clk 0:02:44]} 5. c4 {[%clk 0:02:56]}  e6 {[%clk 0:02:42]} 6. Nc3 {[%clk 0:02:55]}  Be7 {[%clk 0:02:41]} 7. h4 {[%clk 0:02:55]}  O-O {[%clk 0:02:40]} 8. Qb3 {[%clk 0:02:52]}  a5 {[%clk 0:02:37]} 9. Bd3 {[%clk 0:02:44]}  Bd7 {[%clk 0:02:35]} 10. Rc1 {[%clk 0:02:33]}  Nc6 {[%clk 0:02:31]} 11. a3 {[%clk 0:02:32]}  a4 {[%clk 0:02:28]} 12. Qc2 {[%clk 0:02:30]}  Qe8 {[%clk 0:02:09]} 13. d5 {[%clk 0:02:14]}  exd5 {[%clk 0:02:02]} 14. cxd5 {[%clk 0:02:13]}  Na5 {[%clk 0:01:55]} 15. Nd4 {[%clk 0:02:03]}  g6 {[%clk 0:01:45]} 16. Bh6 {[%clk 0:02:02]}  Rf7 {[%clk 0:01:44]} 17. h5 {[%clk 0:01:26]}  Nxh5 {[%clk 0:01:44]} 18. Rxh5 {[%clk 0:01:25]}  gxh5 {[%clk 0:01:43]} 19. Bxf5 {[%clk 0:01:15]}  Nb3 {[%clk 0:01:37]} 20. Be6 {[%clk 0:00:16]}  Nxd4 {[%clk 0:01:30]} 21. exd4 {[%clk 0:00:07]}  Bxe6 {[%clk 0:01:27]} 22. dxe6 {[%clk 0:00:08]}  Rf6 {[%clk 0:01:25]} 23. Be3 {[%clk 0:00:05]}  Rxe6 {[%clk 0:01:23]} 24. d5 {[%clk 0:00:04]}  Rg6 {[%clk 0:01:23]} 25. Qf5 {[%clk 0:00:02]}  Qf7 {[%clk 0:01:21]} 26. Qxh5 {[%clk 0:00:02]}  Re8 {[%clk 0:01:17]} 27. Kd2 {[%clk 0:00:02]}  Bg5 {[%clk 0:01:08]} 28. Qh3 {[%clk 0:00:00]}  Qxf2+ {[%clk 0:01:02]} 0-1

[Event "December 5 Late 2023"]
[Site "https://www.chess.com"]
[Date "2023.12.05"]
[Round "4"]
[White "Petersson, Kjell"]
[Black "Hernandez Jimenez, Alexander Andres"]
[Result "1-0"]
[Board "169"]
[TimeControl "180+1"]
[WhiteFideId "1705148"]
[BlackFideId "3900452"]
[WhiteElo "2163"]
[BlackElo "2326"]
[WhiteTeam "SWE"]
[BlackTeam "VEN"]
[WhiteClock "0:00:15"]
[BlackClock "0:00:00"]

1. d4 {[%clk 0:03:00]}  Nf6 {[%clk 0:02:57]} 2. Bf4 {[%clk 0:03:01]}  d6 {[%clk 0:02:56]} 3. Nc3 {[%clk 0:03:00]}  g6 {[%clk 0:02:57]} 4. e4 {[%clk 0:03:00]}  Bg7 {[%clk 0:02:57]} 5. Qd2 {[%clk 0:03:01]}  c6 {[%clk 0:02:57]} 6. O-O-O {[%clk 0:02:58]}  b5 {[%clk 0:02:57]} 7. f3 {[%clk 0:02:56]}  b4 {[%clk 0:02:55]} 8. Nce2 {[%clk 0:02:55]}  a5 {[%clk 0:02:54]} 9. g4 {[%clk 0:02:44]}  Ba6 {[%clk 0:02:39]} 10. e5 {[%clk 0:02:34]}  dxe5 {[%clk 0:02:37]} 11. Bxe5 {[%clk 0:02:33]}  Nbd7 {[%clk 0:02:35]} 12. Bxf6 {[%clk 0:02:14]}  Nxf6 {[%clk 0:02:33]} 13. h4 {[%clk 0:02:09]}  h5 {[%clk 0:02:29]} 14. g5 {[%clk 0:01:59]}  Nd5 {[%clk 0:02:29]} 15. Nh3 {[%clk 0:01:43]}  a4 {[%clk 0:02:25]} 16. Kb1 {[%clk 0:01:38]}  b3 {[%clk 0:02:25]} 17. cxb3 {[%clk 0:01:38]}  axb3 {[%clk 0:02:24]} 18. a3 {[%clk 0:01:38]}  O-O {[%clk 0:02:14]} 19. Nhf4 {[%clk 0:01:37]}  Qd7 {[%clk 0:01:36]} 20. Bh3 {[%clk 0:01:30]}  Qa7 {[%clk 0:01:22]} 21. Nxd5 {[%clk 0:01:27]}  cxd5 {[%clk 0:01:21]} 22. f4 {[%clk 0:01:26]}  Bxe2 {[%clk 0:01:15]} 23. Qxe2 {[%clk 0:01:26]}  Bxd4 {[%clk 0:01:15]} 24. f5 {[%clk 0:01:26]}  Bh8 {[%clk 0:00:57]} 25. fxg6 {[%clk 0:01:23]}  Qc7 {[%clk 0:00:36]} 26. gxf7+ {[%clk 0:01:20]}  Kxf7 {[%clk 0:00:31]} 27. Qe6+ {[%clk 0:01:16]}  Ke8 {[%clk 0:00:27]} 28. Qg6+ {[%clk 0:01:14]}  Rf7 {[%clk 0:00:19]} 29. Be6 {[%clk 0:00:52]}  Qc2+ {[%clk 0:00:19]} 30. Qxc2 {[%clk 0:00:51]}  bxc2+ {[%clk 0:00:19]} 31. Kxc2 {[%clk 0:00:51]}  Rf2+ {[%clk 0:00:20]} 32. Rd2 {[%clk 0:00:48]}  Rxd2+ {[%clk 0:00:15]} 33. Kxd2 {[%clk 0:00:48]}  Bxb2 {[%clk 0:00:14]} 34. Kc2 {[%clk 0:00:33]}  Bxa3 {[%clk 0:00:12]} 35. g6 {[%clk 0:00:32]}  Kf8 {[%clk 0:00:09]} 36. Bxd5 {[%clk 0:00:24]}  Rc8+ {[%clk 0:00:08]} 37. Kb3 {[%clk 0:00:23]}  Bd6 {[%clk 0:00:08]} 38. Rf1+ {[%clk 0:00:22]}  Kg7 {[%clk 0:00:08]} 39. Bf7 {[%clk 0:00:20]}  Rb8+ {[%clk 0:00:06]} 40. Kc4 {[%clk 0:00:19]}  Rb4+ {[%clk 0:00:06]} 41. Kd5 {[%clk 0:00:19]}  Rxh4 {[%clk 0:00:06]} 42. Ke6 {[%clk 0:00:18]}  Re4+ {[%clk 0:00:05]} 43. Kd5 {[%clk 0:00:17]}  Re5+ {[%clk 0:00:05]} 44. Kd4 {[%clk 0:00:17]}  h4 {[%clk 0:00:05]} 45. Rh1 {[%clk 0:00:17]}  Rh5 {[%clk 0:00:04]} 46. Ke4 {[%clk 0:00:16]}  h3 {[%clk 0:00:04]} 47. Kf3 {[%clk 0:00:16]}  h2 {[%clk 0:00:04]} 48. Kg4 {[%clk 0:00:16]}  Ra5 {[%clk 0:00:03]} 49. Kf3 {[%clk 0:00:15]}  Ra3+ {[%clk 0:00:02]} 50. Kg2 {[%clk 0:00:15]}  Rg3+ {[%clk 0:00:00]} 51. Kf1 {[%clk 0:00:15]} 1-0

[Event "December 5 Late 2023"]
[Site "https://www.chess.com"]
[Date "2023.12.05"]
[Round "4"]
[White "Yushko, Olga"]
[Black "Weisz, Bryan"]
[Result "0-1"]
[Board "173"]
[TimeControl "180+1"]
[WhiteFideId "14114500"]
[BlackFideId "30934133"]
[WhiteElo "2119"]
[BlackElo "2288"]
[WhiteTeam "UKR"]
[BlackTeam "USA"]
[WhiteClock "0:00:43"]
[BlackClock "0:01:54"]

1. d4 {[%clk 0:02:59]}  Nf6 {[%clk 0:03:00]} 2. c4 {[%clk 0:03:00]}  c5 {[%clk 0:03:01]} 3. d5 {[%clk 0:03:00]}  b5 {[%clk 0:03:01]} 4. cxb5 {[%clk 0:03:01]}  a6 {[%clk 0:03:02]} 5. b6 {[%clk 0:03:02]}  d6 {[%clk 0:03:00]} 6. Nc3 {[%clk 0:03:02]}  Nbd7 {[%clk 0:03:01]} 7. e4 {[%clk 0:03:03]}  Nxb6 {[%clk 0:03:01]} 8. Nf3 {[%clk 0:03:03]}  g6 {[%clk 0:03:02]} 9. Bd3 {[%clk 0:03:03]}  Bg7 {[%clk 0:03:02]} 10. h3 {[%clk 0:03:03]}  O-O {[%clk 0:03:03]} 11. O-O {[%clk 0:03:04]}  Bb7 {[%clk 0:03:02]} 12. Re1 {[%clk 0:03:03]}  e6 {[%clk 0:03:03]} 13. dxe6 {[%clk 0:02:48]}  fxe6 {[%clk 0:03:04]} 14. Bc2 {[%clk 0:02:34]}  d5 {[%clk 0:03:04]} 15. exd5 {[%clk 0:02:33]}  exd5 {[%clk 0:03:04]} 16. Bg5 {[%clk 0:02:31]}  d4 {[%clk 0:03:04]} 17. Ne4 {[%clk 0:02:27]}  Qd5 {[%clk 0:02:55]} 18. Nxf6+ {[%clk 0:02:16]}  Bxf6 {[%clk 0:02:55]} 19. Be4 {[%clk 0:02:16]}  Qd7 {[%clk 0:02:53]} 20. Bxb7 {[%clk 0:02:12]}  Qxb7 {[%clk 0:02:54]} 21. Bxf6 {[%clk 0:02:10]}  Rxf6 {[%clk 0:02:54]} 22. Ne5 {[%clk 0:02:02]}  Raf8 {[%clk 0:02:52]} 23. Re2 {[%clk 0:01:55]}  Qd5 {[%clk 0:02:47]} 24. Ng4 {[%clk 0:01:37]}  Rf4 {[%clk 0:02:41]} 25. Rc1 {[%clk 0:01:36]}  d3 {[%clk 0:02:30]} 26. Re5 {[%clk 0:01:35]}  Qd4 {[%clk 0:02:27]} 27. Rexc5 {[%clk 0:01:20]}  d2 {[%clk 0:02:22]} 28. R1c2 {[%clk 0:01:12]}  Rxg4 {[%clk 0:02:09]} 29. hxg4 {[%clk 0:01:10]}  Qxf2+ {[%clk 0:02:07]} 30. Kh2 {[%clk 0:01:08]}  Qh4+ {[%clk 0:02:07]} 31. Kg1 {[%clk 0:01:08]}  Qe1+ {[%clk 0:02:08]} 32. Qxe1 {[%clk 0:00:52]}  dxe1=Q+ {[%clk 0:02:08]} 33. Kh2 {[%clk 0:00:53]}  Qh4+ {[%clk 0:02:06]} 34. Kg1 {[%clk 0:00:53]}  Rd8 {[%clk 0:02:03]} 35. Rc1 {[%clk 0:00:52]}  Qxg4 {[%clk 0:01:55]} 36. Rc6 {[%clk 0:00:43]}  Rd2 {[%clk 0:01:54]} 0-1

[Event "December 5 Late 2023"]
[Site "https://www.chess.com"]
[Date "2023.12.05"]
[Round "4"]
[White "Lopez Del Alamo, Antonio"]
[Black "Mangialardo, Tiago Carvalho"]
[Result "0-1"]
[Board "174"]
[TimeControl "180+1"]
[WhiteFideId "2227339"]
[BlackFideId "2130718"]
[WhiteElo "2287"]
[BlackElo "2082"]
[WhiteTeam "ESP"]
[BlackTeam "BRA"]
[WhiteClock "0:00:00"]
[BlackClock "0:00:10"]

1. e4 {[%clk 0:02:59]}  Nf6 {[%clk 0:03:00]} 2. e5 {[%clk 0:02:56]}  Nd5 {[%clk 0:03:01]} 3. d4 {[%clk 0:02:56]}  d6 {[%clk 0:03:01]} 4. c4 {[%clk 0:02:55]}  Nb6 {[%clk 0:03:01]} 5. f4 {[%clk 0:02:56]}  g6 {[%clk 0:03:01]} 6. Nc3 {[%clk 0:02:55]}  Bg7 {[%clk 0:02:59]} 7. Nf3 {[%clk 0:02:56]}  O-O {[%clk 0:02:58]} 8. Be2 {[%clk 0:02:55]}  dxe5 {[%clk 0:02:59]} 9. fxe5 {[%clk 0:02:55]}  Nc6 {[%clk 0:02:59]} 10. Be3 {[%clk 0:02:55]}  f6 {[%clk 0:02:53]} 11. d5 {[%clk 0:02:27]}  Nxe5 {[%clk 0:02:39]} 12. Nxe5 {[%clk 0:02:27]}  fxe5 {[%clk 0:02:39]} 13. Ne4 {[%clk 0:02:23]}  e6 {[%clk 0:02:32]} 14. d6 {[%clk 0:02:18]}  Qh4+ {[%clk 0:02:29]} 15. Ng3 {[%clk 0:02:12]}  cxd6 {[%clk 0:02:12]} 16. Bxb6 {[%clk 0:02:05]}  axb6 {[%clk 0:02:08]} 17. Qxd6 {[%clk 0:02:05]}  e4 {[%clk 0:01:56]} 18. Qxb6 {[%clk 0:01:33]}  Be5 {[%clk 0:01:36]} 19. Qe3 {[%clk 0:01:16]}  Bxb2 {[%clk 0:01:10]} 20. Rb1 {[%clk 0:01:07]}  Be5 {[%clk 0:01:08]} 21. c5 {[%clk 0:00:15]}  Ra4 {[%clk 0:00:43]} 22. Qb3 {[%clk 0:00:11]}  Rb4 {[%clk 0:00:35]} 23. Qxb4 {[%clk 0:00:07]}  Bxg3+ {[%clk 0:00:35]} 24. Kd1 {[%clk 0:00:06]}  Be5 {[%clk 0:00:16]} 25. Bc4 {[%clk 0:00:04]}  Rd8+ {[%clk 0:00:13]} 26. Kc1 {[%clk 0:00:00]}  Qf4+ {[%clk 0:00:10]} 0-1

[Event "December 5 Late 2023"]
[Site "https://www.chess.com"]
[Date "2023.12.05"]
[Round "4"]
[White "Oliveira, Tiago Batista"]
[Black "Clarke, Matthew"]
[Result "1-0"]
[Board "175"]
[TimeControl "180+1"]
[WhiteFideId "2108291"]
[BlackFideId "3227804"]
[WhiteElo "2080"]
[BlackElo "2264"]
[WhiteTeam "BRA"]
[BlackTeam "AUS"]
[WhiteClock "0:00:50"]
[BlackClock "0:00:17"]

1. d4 {[%clk 0:02:59]}  d5 {[%clk 0:02:58]} 2. c4 {[%clk 0:02:59]}  e6 {[%clk 0:02:58]} 3. Nf3 {[%clk 0:02:59]}  Nf6 {[%clk 0:02:58]} 4. g3 {[%clk 0:03:00]}  Be7 {[%clk 0:02:58]} 5. Bg2 {[%clk 0:03:00]}  O-O {[%clk 0:02:58]} 6. O-O {[%clk 0:02:59]}  dxc4 {[%clk 0:02:58]} 7. Nc3 {[%clk 0:02:54]}  c5 {[%clk 0:02:51]} 8. dxc5 {[%clk 0:02:49]}  Qxd1 {[%clk 0:02:32]} 9. Rxd1 {[%clk 0:02:48]}  Bxc5 {[%clk 0:02:32]} 10. Ne5 {[%clk 0:02:47]}  Nbd7 {[%clk 0:02:17]} 11. Nxc4 {[%clk 0:02:33]}  Ng4 {[%clk 0:01:56]} 12. Ne4 {[%clk 0:02:27]}  Be7 {[%clk 0:01:29]} 13. Ned6 {[%clk 0:02:23]}  Nc5 {[%clk 0:01:19]} 14. h3 {[%clk 0:02:09]}  Nh6 {[%clk 0:00:54]} 15. Be3 {[%clk 0:02:02]}  Na4 {[%clk 0:00:49]} 16. Nxb7 {[%clk 0:01:35]}  Rb8 {[%clk 0:00:47]} 17. Bxa7 {[%clk 0:00:56]}  Rxb7 {[%clk 0:00:46]} 18. Bxb7 {[%clk 0:00:56]}  Bxb7 {[%clk 0:00:46]} 19. Rd7 {[%clk 0:00:56]}  Bd5 {[%clk 0:00:45]} 20. Rxe7 {[%clk 0:00:51]}  Bxc4 {[%clk 0:00:17]} 21. b3 {[%clk 0:00:50]} 1-0

[Event "December 5 Late 2023"]
[Site "https://www.chess.com"]
[Date "2023.12.05"]
[Round "4"]
[White "Uddin, Mubassar"]
[Black "Feliz Dotel, Dewar Bienvenido"]
[Result "1-0"]
[Board "177"]
[TimeControl "180+1"]
[WhiteFideId "2093944"]
[BlackFideId "6402801"]
[WhiteElo "2239"]
[BlackElo "2071"]
[WhiteTeam "USA"]
[BlackTeam "DOM"]
[WhiteClock "0:00:59"]
[BlackClock "0:00:00"]

1. d4 {[%clk 0:03:00]}  d5 {[%clk 0:02:58]} 2. c4 {[%clk 0:03:00]}  e6 {[%clk 0:02:58]} 3. Nc3 {[%clk 0:03:00]}  Nf6 {[%clk 0:02:57]} 4. cxd5 {[%clk 0:03:00]}  exd5 {[%clk 0:02:54]} 5. Bg5 {[%clk 0:03:00]}  c6 {[%clk 0:02:53]} 6. Qc2 {[%clk 0:02:59]}  Be7 {[%clk 0:02:52]} 7. e3 {[%clk 0:02:59]}  O-O {[%clk 0:02:52]} 8. Bd3 {[%clk 0:03:00]}  h6 {[%clk 0:02:52]} 9. Bh4 {[%clk 0:03:00]}  Re8 {[%clk 0:02:43]} 10. Nge2 {[%clk 0:02:59]}  Nbd7 {[%clk 0:02:39]} 11. O-O {[%clk 0:02:55]}  Nf8 {[%clk 0:02:33]} 12. f3 {[%clk 0:02:49]}  Nh5 {[%clk 0:02:16]} 13. Bf2 {[%clk 0:02:48]}  Nf6 {[%clk 0:02:15]} 14. Rae1 {[%clk 0:02:46]}  Be6 {[%clk 0:02:07]} 15. h3 {[%clk 0:02:45]}  Rc8 {[%clk 0:01:57]} 16. e4 {[%clk 0:02:44]}  dxe4 {[%clk 0:01:56]} 17. fxe4 {[%clk 0:02:45]}  Nh5 {[%clk 0:01:44]} 18. Be3 {[%clk 0:02:32]}  Bg5 {[%clk 0:01:42]} 19. Qd2 {[%clk 0:02:27]}  Ng6 {[%clk 0:01:05]} 20. e5 {[%clk 0:02:19]}  Bxe3+ {[%clk 0:01:01]} 21. Qxe3 {[%clk 0:02:15]}  Ne7 {[%clk 0:00:40]} 22. Qf3 {[%clk 0:02:06]}  g6 {[%clk 0:00:38]} 23. Ne4 {[%clk 0:02:03]}  Bd5 {[%clk 0:00:36]} 24. N2c3 {[%clk 0:01:57]}  Bxe4 {[%clk 0:00:36]} 25. Qxe4 {[%clk 0:01:58]}  Ng7 {[%clk 0:00:34]} 26. Bc4 {[%clk 0:01:54]}  Nd5 {[%clk 0:00:20]} 27. Nxd5 {[%clk 0:01:53]}  cxd5 {[%clk 0:00:20]} 28. Bxd5 {[%clk 0:01:53]}  Nf5 {[%clk 0:00:17]} 29. e6 {[%clk 0:01:33]}  Kh7 {[%clk 0:00:09]} 30. Rxf5 {[%clk 0:01:28]}  gxf5 {[%clk 0:00:09]} 31. Qxf5+ {[%clk 0:01:29]}  Kh8 {[%clk 0:00:07]} 32. Qe5+ {[%clk 0:01:20]}  f6 {[%clk 0:00:07]} 33. Qf5 {[%clk 0:01:17]}  Qe7 {[%clk 0:00:06]} 34. Be4 {[%clk 0:01:15]}  Rcd8 {[%clk 0:00:06]} 35. d5 {[%clk 0:01:15]}  Rd6 {[%clk 0:00:06]} 36. Re3 {[%clk 0:01:14]}  Rg8 {[%clk 0:00:04]} 37. Rf3 {[%clk 0:01:05]}  Rg5 {[%clk 0:00:02]} 38. Qxf6+ {[%clk 0:00:58]}  Qxf6 {[%clk 0:00:00]} 39. Rxf6 {[%clk 0:00:59]} 1-0

[Event "December 5 Late 2023"]
[Site "https://www.chess.com"]
[Date "2023.12.05"]
[Round "4"]
[White "Clawitter, Craig"]
[Black "Panuganti, Kireet"]
[Result "0-1"]
[Board "179"]
[TimeControl "180+1"]
[WhiteFideId "2023105"]
[BlackFideId "30903297"]
[WhiteElo "2231"]
[BlackElo "2014"]
[WhiteTeam "USA"]
[BlackTeam "USA"]
[WhiteClock "0:01:29"]
[BlackClock "0:01:03"]

1. e4 {[%clk 0:02:58]}  c5 {[%clk 0:02:58]} 2. Nf3 {[%clk 0:02:58]}  d6 {[%clk 0:02:57]} 3. d4 {[%clk 0:02:57]}  cxd4 {[%clk 0:02:58]} 4. Nxd4 {[%clk 0:02:58]}  Nf6 {[%clk 0:02:58]} 5. Nc3 {[%clk 0:02:59]}  g6 {[%clk 0:02:59]} 6. Be3 {[%clk 0:02:59]}  Bg7 {[%clk 0:02:59]} 7. f3 {[%clk 0:03:00]}  O-O {[%clk 0:02:59]} 8. Qd2 {[%clk 0:03:00]}  Nc6 {[%clk 0:02:59]} 9. Bc4 {[%clk 0:03:01]}  Bd7 {[%clk 0:02:59]} 10. O-O-O {[%clk 0:03:00]}  Rc8 {[%clk 0:02:59]} 11. Bb3 {[%clk 0:03:01]}  Nxd4 {[%clk 0:02:59]} 12. Bxd4 {[%clk 0:03:01]}  b5 {[%clk 0:03:00]} 13. Nd5 {[%clk 0:02:59]}  Nxd5 {[%clk 0:02:58]} 14. Bxg7 {[%clk 0:02:56]}  Kxg7 {[%clk 0:02:57]} 15. exd5 {[%clk 0:02:56]}  a5 {[%clk 0:02:53]} 16. a3 {[%clk 0:02:56]}  Kg8 {[%clk 0:02:52]} 17. Rhe1 {[%clk 0:02:55]}  Rc5 {[%clk 0:02:50]} 18. h4 {[%clk 0:02:46]}  b4 {[%clk 0:02:40]} 19. axb4 {[%clk 0:02:38]}  axb4 {[%clk 0:02:39]} 20. Qxb4 {[%clk 0:02:26]}  Qa8 {[%clk 0:02:37]} 21. Kb1 {[%clk 0:02:02]}  Rb8 {[%clk 0:01:53]} 22. Qa3 {[%clk 0:01:59]}  Ra5 {[%clk 0:01:37]} 23. Rxe7 {[%clk 0:01:48]}  Rxa3 {[%clk 0:01:34]} 24. bxa3 {[%clk 0:01:49]}  Qxa3 {[%clk 0:01:05]} 25. Rxd7 {[%clk 0:01:29]}  Ra8 {[%clk 0:01:03]} 0-1